[Event "1000GM Schev-G6 March 2024"]
[Site "Santa Clara"]
[Date "2024.03.11"]
[Round "5.3"]
[White "Gonzalez Zharikov, Andrey"]
[Black "Qi, Jenny"]
[Result "1-0"]
[ECO "B92"]
[WhiteElo "1993"]
[BlackElo "1764"]
[Annotator "RC"]
[PlyCount "89"]
[EventDate "2024.03.06"]
[EventType "schev"]
[EventCountry "USA"]
[SourceTitle "playchess.com"]
[Source "ChessBase"]
[SourceQuality "1"]
[TimeControl "5400+30"]

1. e4 {[%emt 0:00:01]} c5 {[%emt 0:00:30]} 2. Nf3 {[%emt 0:00:09]} d6 {[%emt 0:00:09]} 3. d4 {[%emt 0:00:06]} cxd4 {[%emt 0:00:30]} 4. Nxd4 {[%emt 0:00:05]} Nf6 {[%emt 0:00:47]} 5. Nc3 {[%emt 0:00:07]} a6 {[%emt 1:31:04]} 6. Be2 {[%emt 0:00:09]} e5 {[%emt 0:00:00]} 7. Nb3 {[%emt 0:00:10]} Be7 {[%emt 0:00:00]} 8. O-O {[%emt 0:00:09]} O-O {[%emt 0:00:00]} 9. Kh1 {[%emt 0:00:25]} Nc6 {[%emt 0:00:00]} 10. f4 {[%emt 0:00:44]} Re8 {[%emt 0:00:00]} 11. a4 {[%emt 0:13:12]} exf4 {[%emt 0:00:00]} 12. Bxf4 {[%emt 0:00:15]} Ne5 {[%emt 0:00:00]} 13. Nd4 {[%emt 0:08:44]} Be6 {[%emt 0:00:00]} 14. Nf5 {[%emt 0:09:09]} Rc8 {[%emt 0:00:00]} 15. Nxe7+ {[%emt 0:10:26]} Qxe7 {[%emt 0:00:00]} 16. Bg5 {[%emt 0:01:23]} Ned7 {[%emt 0:00:00]} 17. Qd4 {[%emt 0:06:17]} Rc6 {[%emt 0:00:00]} 18. Rad1 {[%emt 0:03:44]} Qf8 {[%emt 0:00:00]} 19. Bd3 {[%emt 0:09:47]} Ng4 {[%emt 0:00:00]} 20. Nd5 {[%emt 0:35:28]} Nge5 {[%emt 0:00:00]} 21. Ne3 {[%emt 0:00:00]} g6 {[%emt 0:00:00]} 22. Be2 {[%emt 0:00:00]} Qg7 {[%emt 0:00:00]} 23. b4 {[%emt 0:00:00]} h6 {[%emt 0:05:07]} 24. Bh4 {[%emt 0:00:00]} g5 {[%emt 0:02:59]} 25. Be1 {[%emt 0:00:00]} Ng6 {[%emt 0:00:59]} 26. b5 {[%emt 0:00:00]} axb5 {[%emt 0:00:48]} 27. Bxb5 {[%emt 0:00:00]} Qxd4 {[%emt 0:00:33]} 28. Rxd4 {[%emt 0:00:00]} Rcc8 {[%emt 0:00:18]} 29. Rxd6 {[%emt 0:00:00]} Nge5 {[%emt 0:00:11]} 30. Bg3 {[%emt 0:00:00]} Re7 {[%emt 0:00:34]} 31. Kg1 {[%emt 0:00:00]} Nc4 {[%emt 0:00:17]} 32. Nxc4 {[%emt 0:00:00]} Bxc4 {[%emt 0:01:00]} 33. Bxd7 {[%emt 0:00:00]} Rxd7 {[%emt 0:00:33]} 34. Rxd7 {[%emt 0:00:00]} Bxf1 {[%emt 0:00:10]} 35. Kxf1 {[%emt 0:00:00]} Rxc2 {[%emt 0:00:13]} 36. Rxb7 {[%emt 0:00:00]} Ra2 {[%emt 0:00:08]} 37. Ra7 {[%emt 0:00:00]} h5 {[%emt 0:00:24]} 38. h3 {[%emt 0:00:00]} Ra1+ {[%emt 0:00:06]} 39. Be1 {[%emt 0:00:00]} g4 {[%emt 0:00:29]} 40. hxg4 {[%emt 0:00:00]} hxg4 {[%emt 0:00:05]} 41. a5 {[%emt 0:00:00]} Kg7 {[%emt 0:00:29]} 42. Rb7 {[%emt 0:00:00]} Kg8 {[%emt 0:00:10]} 43. Rb3 {[%emt 0:00:00]} Ra4 {[%emt 0:00:27]} 44. Rb4 {[%emt 0:00:00]} Ra3 {[%emt 0:00:10]} 45. e5 {[%emt 0:00:00]} 1-0

[Event "1000GM Schev-G6 March 2024"]
[Site "Santa Clara"]
[Date "2024.03.11"]
[Round "5.4"]
[White "Zhuge, Katherine"]
[Black "Rivera, Alberto"]
[Result "1/2-1/2"]
[ECO "B38"]
[WhiteElo "1798"]
[BlackElo "2290"]
[Annotator "TA"]
[PlyCount "79"]
[EventDate "2024.03.06"]
[EventType "schev"]
[EventCountry "USA"]
[SourceTitle "playchess.com"]
[Source "ChessBase"]
[SourceQuality "1"]
[TimeControl "5400+30"]

{[%evp 21,79,54,66,61,66,62,77,44,45,49,91,48,77,74,88,81,72,16,181,201,295,86,109,100,86,102,86,82,108,109,105,0,0,0,0,0,0,0,0,0,0,0,0,0,0,0,0,0,0,0,0,0,0,0,0,0,0,0,0,-7]} 1. e4 {[%emt 0:00:03]} c5 {[%emt 0:01:46]} 2. Nf3 {[%emt 0:00:07]} Nc6 {[%emt 0:00:07]} 3. c4 {[%emt 0:01:20]} g6 {[%emt 0:05:55]} 4. d4 {[%emt 0:02:10]} cxd4 {[%emt 0:00:32]} 5. Nxd4 {[%emt 0:00:07]} Bg7 {[%emt 0:00:17]} 6. Be3 {[%emt 0:00:16]} Nf6 {[%emt 0:01:41]} 7. Nc3 {[%emt 0:00:25]} O-O {[%emt 0:00:34]} 8. Be2 {[%emt 0:00:27]} d6 {[%emt 0:01:17]} 9. f3 {[%emt 0:01:00]} Bd7 {[%emt 0:10:11]} 10. O-O {[%emt 0:00:29]} a6 {[%emt 0:01:09]} 11. Qd2 {[%emt 0:01:24]} Rc8 {[%emt 0:01:50]} 12. Rab1 {[%emt 0:00:42]} Qc7 {[%emt 0:02:35]} 13. Rfc1 {[%emt 0:01:28]} Qb8 {[%emt 0:00:54]} 14. Kh1 {[%emt 0:05:15] White is better.} Nxd4 {[%emt 0:05:26]} 15. Bxd4 {[%emt 0:00:09]} Bc6 {[%emt 0:01:23]} 16. Bf1 {[%emt 0:03:23]} e6 {[%emt 0:00:39]} 17. b4 {[%emt 0:05:00]} b5 {[%emt 0:04:51]} 18. cxb5 {[%emt 0:02:43]} axb5 {[%emt 0:00:56]} 19. Qd3 {[%emt 0:02:40] White is more active.} (19. a4 $16 {[%cal Rc3b5]} bxa4 20. b5) 19... Rfd8 $2 {[%emt 0:17:31]} (19... d5 $11 {and Black is okay.}) 20. Nxb5 $18 {[%emt 0:04:16] [#] aiming for Na7.} Nxe4 {[%emt 0:18:30]} (20... d5 $142 21. e5 Bxb5 22. Qxb5 Nd7 23. Qxb8 Rxb8) 21. Na7 $2 {[%emt 0:03:20]} (21. Rxc6 $18 {is the precise move to win.} Rxc6 22. fxe4 (22. Qxe4 d5 $18)) 21... Nc5 $16 {[%emt 0:04:09]} 22. Bxc5 {[%emt 0:08:17]} dxc5 {[%emt 0:00:52] [#]} 23. Qxd8+ {[%emt 0:02:52]} Rxd8 {[%emt 0:02:01]} 24. Nxc6 {[%emt 0:00:03]} Qc7 {[%emt 0:02:40]} 25. Nxd8 {[%emt 0:55:04]} Qxd8 {[%emt 0:15:14]} 26. bxc5 {[%emt 0:00:00]} (26. Rxc5 $16 {a4 would now be deadly.} Qa8 27. Bd3) 26... Be5 $1 $11 {[%emt 0:00:00] The position is equal.} 27. Rc4 {[%emt 0:00:00] Repels Qh4} Bc7 {[%emt 0:00:00]} 28. a4 {[%emt 0:00:00]} Qd2 {[%emt 0:00:00]} 29. c6 {[%emt 0:00:00]} Kg7 {[%emt 0:00:00]} 30. Rbc1 {[%emt 0:00:00]} Qe3 {[%emt 0:00:00]} 31. a5 {[%emt 0:00:00]} Bxa5 {[%emt 0:00:05]} ({Don't go for} 31... Qe5 $2 32. g3 $18) 32. c7 {[%emt 0:00:00]} Bb6 {[%emt 0:00:18][%csl Gb6][%cal Re3g1]} 33. Bd3 {[%emt 0:00:00] Really sharp!} Bxc7 {[%emt 0:00:22]} 34. Rxc7 {[%emt 0:00:00]} Qxd3 {[%emt 0:00:12][%mdl 4096] Endgame. KQ-KRR} 35. R7c3 {[%emt 0:00:11]} Qd5 {[%emt 0:00:17]} 36. Rc5 {[%emt 0:00:32]} Qd4 {[%emt 0:01:06]} 37. R5c4 {[%emt 0:00:11]} Qf6 {[%emt 0:00:07]} 38. Rc7 {[%emt 0:00:10]} Qf4 {[%emt 0:00:37]} 39. R7c4 {[%emt 0:00:08]} Qg5 {[%emt 0:00:43]} 40. Rc5 {[%emt 0:06:18] White really could win this.   Weighted Error Value: White=0.18 (very precise) /Black=0.17 (very precise) .  Loses game:     	---       	Black=1      Missed win:     	White=1     	---        Mistake:       	White=2     	Black=1      Inaccurate:     	White=2     	Black=3      OK:         	White=9     	Black=10     Best:        	White=1     	Black=2      Strong:       	---       	Black=1} 1/2-1/2